fUSD/lending_fUSD_20251011
["ID","MTS","AMOUNT","RATE_DAILY","PERIOD"]
[390802930,1760160494859,-500.0,0.000356,120]
[390802931,1760160494886,-500.0,0.000356,120]
[390802932,1760160494914,-500.0,0.000356,120]
[390802933,1760160494941,-500.0,0.000356,120]
[390802934,1760160494969,-1000.0,0.0003561,60]
[390802935,1760160494996,-151.0,0.00035616,120]
[390802936,1760160495030,-10942.08759209,0.00035616,120]
[390802937,1760160495059,-1444.0,0.00035616,30]
[390802938,1760160495087,-206.2044901,0.00035638,120]
[390802939,1760160495115,-3382.12,0.00035639,30]
[390802940,1760160495145,-780.0,0.0003565,30]
[390802941,1760160495173,-173.0,0.000357,120]
[390802942,1760160495201,-500.0,0.00035703,60]
[390802943,1760160495229,-1000.0,0.0003571,60]
[390802944,1760160495258,-5366.788,0.000358,90]
[390802945,1760160495286,-1000.0,0.0003581,60]
[390802946,1760160495313,-3859.5270947,0.0003585,60]
[390802947,1760160495340,-3111.64078,0.00035888,30]
[390802948,1760160495370,-152.0,0.000359,120]
[390802949,1760160495399,-1000.0,0.0003591,60]
[390802950,1760160495427,-780.0,0.00035924,30]
[390802951,1760160495454,-312.58511273,0.00036,120]
[390802952,1760160495482,-30000.0,0.00036,120]
[390802953,1760160495514,-2000.0,0.00036,120]
[390802954,1760160495542,-222.94892473,0.00036002,120]
[390802955,1760160495570,-238.80286738,0.00036002,120]
[390802956,1760160495598,-206.2044901,0.00036002,120]
[390802957,1760160495627,-1000.0,0.0003601,60]
[390802958,1760160495654,-3111.64078,0.00036088,30]
[390802959,1760160495680,-1000.0,0.0003611,60]
[390802960,1760160495707,-780.0,0.00036198,30]
[390802961,1760160495737,-1000.0,0.0003621,60]
[390802962,1760160495765,-3111.64078,0.00036288,30]
[390802963,1760160495793,-1000.0,0.0003631,60]
[390802964,1760160495822,-274438.19809945,0.00036354,120]
[390802965,1760160495850,-173.0,0.000364,120]
[390802966,1760160495879,-1000.0,0.0003641,60]
[390802967,1760160495907,-780.0,0.00036472,30]
[390802968,1760160495935,-3111.64078,0.00036488,30]
[390802969,1760160495963,-36700.0,0.000365,120]
[390802970,1760160495991,-723.89810067,0.000365,50]
[390802971,1760160496020,-1000.0,0.0003651,60]
[390802972,1760160496048,-1500.0,0.0003652,42]
[390802973,1760160496075,-500.0,0.00036585,60]
[390802974,1760160496105,-1000.0,0.0003661,60]
[390802975,1760160496133,-3111.64078,0.00036688,30]
[390802976,1760160496161,-564.96334248,0.000367,120]
[390802977,1760160496191,-1000.0,0.0003671,60]
[390802978,1760160496219,-30047.85926589,0.000368,30]
[390802979,1760160496248,-1000.0,0.0003681,60]
[390802980,1760160496275,-780.0,0.00036857,30]
[390802981,1760160496301,-3111.64078,0.00036888,30]
[390802982,1760160496328,-5000.0,0.000369,120]
[390802983,1760160496358,-152.0,0.000369,120]
[390802984,1760160496386,-1000.0,0.0003691,60]
[390802985,1760160496415,-10718.11902189,0.00037,30]
[390802986,1760160496446,-11941.38946804,0.00037,30]
[390802987,1760160496473,-5000.0,0.00037,120]
[390802988,1760160496499,-30000.0,0.00037,120]
[390802989,1760160496525,-24390.0,0.00037,120]
[390802990,1760160496552,-2030.52741204,0.00037,120]
[390802991,1760160496580,-1000.0,0.0003701,60]
[390802992,1760160496609,-3111.64078,0.00037088,30]
[390802993,1760160496989,-491273.78442687,0.000371,30]
[390802994,1760160497014,-173.0,0.000371,120]
[390802995,1760160497043,-1000.0,0.0003711,60]
[390802996,1760160497069,-3476.71227322,0.000372,120]
[390802997,1760160497094,-3476.71227319,0.000372,120]
[390802998,1760160497120,-3476.71227319,0.000372,120]
[390802999,1760160497146,-3476.71227319,0.000372,120]
[390803000,1760160497178,-3476.71227319,0.000372,120]
[390803001,1760160497205,-2711.76556838,0.00037212,120]
[390803002,1760160497231,-397.99995086,0.00037212,120]
[390803003,1760160497256,-3111.64078,0.00037288,30]
[390803004,1760160497283,-1000.0,0.0003731,60]
[390803005,1760160497308,-1000.0,0.0003741,60]
[390803006,1760160497332,-713.83681959,0.00037467,60]
[390803007,1760160497358,-3111.64078,0.00037488,30]
[390803008,1760160497382,-576.0,0.000375,120]
[390803009,1760160497408,-1000.0,0.0003751,60]
[390803010,1760160497433,-1000.0,0.0003761,60]
[390803011,1760160497458,-3111.64078,0.00037688,30]
[390803012,1760160497483,-1000.0,0.0003771,60]
[390803013,1760160497509,-173.0,0.000378,120]
[390803014,1760160497534,-709.84,0.00037808,60]
[390803015,1760160497559,-709.85,0.00037839,80]
[390803016,1760160497583,-554.0,0.00037869,120]
[390803017,1760160497610,-709.85,0.00037869,100]
[390803018,1760160497635,-3111.64078,0.00037888,30]
[390803019,1760160497662,-19938.1,0.00037895,117]
[390803020,1760160497686,-709.84,0.000379,120]
[390803021,1760160497711,-5000.0,0.000379,120]
[390803022,1760160497736,-152.0,0.000379,120]
[390803023,1760160497761,-761.72845101,0.00037999,120]
[390803024,1760160497786,-2364.06775617,0.00038,120]
[390803025,1760160497811,-272.14579067,0.00038,120]
[390803026,1760160497835,-5000.0,0.00038,120]
[390803027,1760160497862,-30000.0,0.00038,120]
[390803028,1760160497887,-2000.0,0.00038,120]
[390803029,1760160497912,-3111.64078,0.00038088,30]
[390803030,1760160497937,-3111.64078,0.00038288,30]
[390803031,1760160497963,-780.0,0.00038331,30]
[390803032,1760160497988,-3013.14,0.00038356,120]
[390803033,1760160498012,-3013.14,0.00038356,120]
[390803034,1760160498037,-3013.14,0.00038356,120]
[390803035,1760160498062,-3013.14,0.00038356,120]
[390803036,1760160498088,-3013.14,0.00038356,120]
[390803037,1760160498111,-3013.14,0.00038356,120]
[390803038,1760160498136,-3013.14,0.00038356,120]
[390803039,1760160498166,-3013.14,0.00038356,120]
[390803040,1760160498191,-3013.14,0.00038356,120]
[390803041,1760160498216,-3013.14,0.00038356,120]
[390803042,1760160498243,-3013.14,0.00038356,120]
[390803043,1760160498268,-3013.14,0.00038356,120]
[390803044,1760160498293,-3013.14,0.00038356,120]
[390803045,1760160498317,-3013.14,0.00038356,120]
[390803046,1760160498343,-3013.14,0.00038356,120]
[390803047,1760160498369,-3013.14,0.00038356,120]
[390803048,1760160498395,-3013.14,0.00038356,120]
[390803049,1760160498420,-3013.14,0.00038356,120]
[390803050,1760160498446,-3013.14,0.00038356,120]
[390803051,1760160498471,-3013.14,0.00038356,120]
[390803052,1760160498495,-3013.14,0.00038356,120]
[390803053,1760160498521,-3013.14,0.00038356,120]
[390803054,1760160498546,-3013.14,0.00038356,120]
[390803055,1760160498571,-3013.352827,0.00038356,120]
[390803056,1760160498596,-2425.31568317,0.00038356,30]
[390803057,1760160498620,-160.0,0.00038356,30]
[390803058,1760160500742,475.23572958,0.000318,30]
[390803059,1760160501553,300.0,0.00030317,46]
[390803060,1760160501974,297.79,0.00028873,30]
[390803061,1760160502338,297.79,0.00029054,30]
[390803062,1760160502434,297.79,0.00029234,30]
[390803063,1760160502797,297.79,0.00029415,30]
[390803064,1760160502923,297.79,0.00029595,30]
[390803065,1760160503050,297.79,0.00029776,30]
[390803066,1760160503121,662.0,0.0003835,30]
[390803067,1760160503187,297.79,0.00029957,30]
[390803068,1760160503550,297.79,0.00030137,30]
[390803069,1760160503638,297.79,0.00030318,30]
[390803070,1760160504697,36591.62353601,0.000334,33]
[390803071,1760160511033,914.82229795,0.00035,120]
[390803073,1760160532131,-10300000.0,0.00030322,30]
[390803074,1760160546211,-7711039.8784565,0.00030322,30]
[390803075,1760160546238,-28916.39957945,0.00030322,30]
[390803076,1760160546263,-159.78635382,0.00030322,30]
[390803077,1760160546289,-225887.9638838,0.00030322,30]
[390803078,1760160546313,-5448.35078702,0.00030322,30]
[390803079,1760160546340,-2328547.62093941,0.00030322,30]
[390803080,1760160547634,666.0,0.00012976,3]
[390803081,1760160556898,-10300000.0,0.00030322,30]
[390803082,1760160561647,-5367145.586102,0.00030322,30]
[390803083,1760160561677,-28193.57273814,0.00030322,30]
[390803084,1760160561701,-42294.18311863,0.00030322,30]
[390803085,1760160561726,-40969.96178554,0.00030322,30]
[390803086,1760160561752,-10000.000002,0.00030322,30]
[390803087,1760160561776,-25760.86766544,0.00030322,30]
[390803088,1760160561801,-4000.0,0.00030322,31]
[390803089,1760160561826,-155.36567147,0.00030322,30]
[390803090,1760160561851,-200378.42169064,0.00030322,30]
[390803091,1760160561874,-343.47893056,0.00030322,30]
[390803092,1760160561899,-165.53012304,0.00030322,30]
[390803093,1760160561927,-99874.42,0.00030322,30]
[390803094,1760160561951,-10000.0,0.00030322,30]
[390803095,1760160561974,-651751.96468841,0.00030322,30]
[390803096,1760160562000,-214.3,0.00030322,30]
[390803097,1760160562024,-378531.74427549,0.00030322,30]
[390803098,1760160562052,-10000.0,0.00030322,30]
[390803099,1760160562077,-54963.96761889,0.00030322,30]
[390803100,1760160562102,-3375256.63558975,0.00030322,30]
[390803114,1760160573522,711.42129117,0.00013459,2]
[390803128,1760160632226,-500.0,0.00013766,2]
[390803129,1760160632238,-250.0,0.00013767,2]
[390803130,1760160632248,-508.30435243,0.00013768,2]
[390803131,1760160632260,-300.0,0.00013768,2]
[390803132,1760160632270,-893.40164757,0.00013768,2]
[390803133,1760160632286,-306.59835243,0.00013768,2]
[390803134,1760160632296,-300.0,0.00013768,2]
[390803135,1760160632306,-2000.0,0.00013769,2]
[390803136,1760160632316,-1423.15881717,0.00013769,2]
[390803137,1760160632379,-494.15426274,0.00013769,2]
[390803138,1760160632515,-6695.10156312,0.00013769,2]
[390803139,1760160632526,-4719.29236245,0.00013769,2]
[390803244,1760160638080,-1128.2,0.00013769,2]
[390803245,1760160638333,-924.0875845,0.00013769,2]
[390803448,1760160640234,-2802.0866118,0.00013769,2]
[390803451,1760160640243,-160.67415126,0.0001377,2]
[390803454,1760160640254,-536.75227712,0.0001377,2]
[390803456,1760160640264,-1425.0,0.00013798,2]
[390803459,1760160640274,-700.0,0.000138,5]
[390803461,1760160640284,-150.0,0.00013861,2]
[390803463,1760160640293,-500.0,0.00013862,2]
[390803465,1760160640302,-500.0,0.00013862,2]
[390803467,1760160640312,-500.0,0.00013862,2]
[390803469,1760160640321,-500.0,0.00013862,2]
[390803471,1760160640330,-161.52371828,0.00013862,2]
[390803473,1760160640339,-633.69064915,0.00013862,2]
[390803475,1760160640349,-151.0,0.00013862,2]
[390803477,1760160640357,-200.0,0.00013862,2]
[390803479,1760160640367,-151.0,0.00013862,2]
[390803481,1760160640376,-151.0,0.00013862,2]
[390803483,1760160640385,-151.0,0.00013862,2]
[390803485,1760160640394,-151.0,0.00013862,2]
[390803487,1760160640403,-151.0,0.00013862,2]
[390803489,1760160640412,-151.0,0.00013862,2]
[390803491,1760160640421,-151.0,0.00013862,2]
[390803493,1760160640430,-151.0,0.00013862,2]
[390803495,1760160640439,-93.77987379,0.00013862,2]
[390803502,1760160640490,-57.22012621,0.00013862,2]
[390803504,1760160640500,-151.0,0.00013862,2]
[390803505,1760160640510,-209.62413648,0.00013862,2]
[390803507,1760160640519,-105.65312277,0.00013862,2]
[390803510,1760160640530,-45.34687723,0.00013862,2]
[390803512,1760160640539,-151.0,0.00013862,2]
[390803514,1760160640549,-151.0,0.00013862,2]
[390803516,1760160640558,-151.0,0.00013862,2]
[390803518,1760160640567,-151.0,0.00013862,2]
[390803520,1760160640576,-151.0,0.00013862,2]
[390803521,1760160640585,-151.0,0.00013862,2]
[390803523,1760160640594,-151.0,0.00013862,2]
[390803526,1760160640604,-151.0,0.00013862,2]
[390803528,1760160640613,-151.0,0.00013862,2]
[390803530,1760160640622,-151.0,0.00013862,2]
[390803532,1760160640631,-151.0,0.00013862,2]
[390803534,1760160640642,-500.0,0.00013866,2]
[390803536,1760160640651,-41.05312277,0.00013868,2]
[390803538,1760160640662,-484.28230593,0.00013868,2]
[390803540,1760160640672,-431.40346457,0.00013869,2]
[390803542,1760160640683,-1258.61365811,0.00013869,2]
[390803551,1760160640744,-297.7262798,0.00013869,2]
[390803553,1760160640758,-682.60523184,0.00013869,2]
[390803897,1760160644044,-552.94291536,0.00013869,2]
[390803904,1760160644101,-545.52427716,0.00013869,2]
[390803911,1760160644167,-716.73120004,0.00013869,2]
[390803924,1760160644285,-12579.86408822,0.00013869,2]
[390803926,1760160644294,-170420.13591178,0.00013869,2]
[390804215,1760160692632,7231.354,0.00013592,2]
[390804216,1760160692914,385.291,0.00013592,2]
[390804217,1760160747215,675.90239021,0.000273,120]
[390804218,1760160834671,250.0,0.0001324,2]
[390804219,1760160836931,-207.16740925,0.00013768,2]
[390804220,1760160836953,-5372.83259075,0.00013769,2]
[390804221,1760160902874,165.2708398,0.00027397,120]
[390804223,1760161097528,200.0,0.0001324,2]
[390804224,1760161239657,425.3,0.00027397,120]
[390804225,1760161252883,163.15,6.63e-05,2]
[390804226,1760161253086,163.15,9.946e-05,2]
[390804227,1760161253298,163.15,0.00013261,2]
[390804230,1760161293120,1389.13349617,0.00013592,2]
[390804231,1760161293140,4395.94950383,0.00013592,2]
[390804232,1760161293179,308.233,0.00013592,2]
[390804233,1760161296108,971.7,0.00013699,2]
[390804236,1760161377320,150.0,0.0002739,120]
[390804238,1760161404752,200.0,0.00013588,2]
[390804239,1760161405109,200.0,0.00013589,2]
[390804240,1760161431898,264.90526787,0.00013618,2]
[390804241,1760161433225,482.94289132,0.00027397,120]
[390804242,1760161465018,223.22,0.00013021,2]
[390804243,1760161538184,1600.0,0.00013081,2]
[390804245,1760161618491,1500.0,0.00013087,2]
[390804246,1760161664611,151.0,0.00027397,120]
[390804247,1760161780845,150.0,0.00027397,120]
[390804248,1760161800037,154.16,0.00013205,2]
[390804249,1760161829669,5181.8322283,0.00013033,2]
[390804250,1760161829691,5586.3177717,0.00013033,2]
[390804263,1760161832520,-181.89730353,0.00013756,2]
[390804264,1760161832530,-193.64323502,0.00013756,2]
[390804265,1760161832540,-602.33067525,0.00013756,2]
[390804266,1760161832551,-173.62382877,0.00013756,2]
[390804267,1760161832560,-500.0,0.00013756,2]
[390804268,1760161832569,-517.83744566,0.00013756,2]
[390804269,1760161832578,-300.0,0.00013757,2]
[390804270,1760161832589,-300.0,0.00013757,2]
[390804271,1760161832599,-1200.0,0.00013757,2]
[390804272,1760161832608,-2000.0,0.00013758,2]
[390804273,1760161832618,-195.0,0.00013759,2]
[390804274,1760161832627,-300.0,0.00013759,2]
[390804275,1760161832636,-1919.99957716,0.00013759,2]
[390804276,1760161832646,-195.0,0.00013793,2]
[390804277,1760161832655,-8616.29990292,0.00013824,2]
[390804278,1760161832664,-956.58693169,0.00013862,2]
[390804279,1760161832675,-4611.41306831,0.00013862,2]
[390804281,1760161832684,-1000.0,0.00013867,2]
[390804283,1760161832694,-150.0,0.00013867,2]
[390804285,1760161832703,-8111.77026489,0.00013868,2]
[390804290,1760161832745,-500.0,0.00013756,2]
[390804292,1760161832754,-6.14406425,0.00013868,2]
[390804296,1760161832786,-762.4,0.00013868,2]
[390804300,1760161832815,-7211.0,0.00013868,2]
[390804305,1760161832845,-41224.14866986,0.00013868,2]
[390804307,1760161832854,-155.0,0.00013868,2]
[390804309,1760161832863,-500.0,0.00013869,2]
[390804310,1760161832873,-500.0,0.00013869,2]
[390804311,1760161832882,-500.0,0.00013869,2]
[390804312,1760161832891,-500.0,0.00013869,2]
[390804313,1760161832900,-874.0,0.00013869,2]
[390804314,1760161832909,-500.0,0.00013869,2]
[390804315,1760161832918,-150.0,0.00013869,2]
[390804316,1760161832927,-500.0,0.00013869,2]
[390804317,1760161832936,-150.0,0.00013869,2]
[390804318,1760161832946,-150.0,0.00013869,2]
[390804319,1760161832955,-1843.31,0.00013869,2]
[390804320,1760161832964,-150.0,0.00013869,2]
[390804321,1760161832976,-150.0,0.00013869,2]
[390804322,1760161832985,-500.0,0.00013869,2]
[390804323,1760161832994,-150.0,0.00013869,2]
[390804324,1760161833004,-500.0,0.00013869,2]
[390804325,1760161833013,-150.0,0.00013869,2]
[390804326,1760161833022,-500.0,0.00013869,2]
[390804327,1760161833031,-500.0,0.00013869,2]
[390804328,1760161833041,-150.0,0.00013869,2]
[390804329,1760161833050,-200.0,0.00013869,2]
[390804330,1760161833059,-150.0,0.00013869,2]
[390804331,1760161833068,-690.0,0.00013869,2]
[390804332,1760161833077,-484.0,0.00013869,2]
[390804333,1760161833086,-150.0,0.00013869,2]
[390804334,1760161833096,-500.0,0.00013869,2]
[390804335,1760161833105,-150.28211594,0.00013869,2]
[390804336,1760161833114,-150.0,0.00013869,2]
[390804337,1760161833124,-150.0,0.00013869,2]
[390804338,1760161833133,-150.0,0.00013869,2]
[390804339,1760161833142,-150.0,0.00013869,2]
[390804340,1760161833152,-473.0,0.00013869,2]
[390804341,1760161833160,-150.0,0.00013869,2]
[390804342,1760161833170,-500.0,0.00013869,2]
[390804343,1760161833179,-150.0,0.00013869,2]
[390804344,1760161833188,-500.0,0.00013869,2]
[390804345,1760161833197,-659.0,0.00013869,2]
[390804346,1760161833207,-557.0,0.00013869,2]
[390804347,1760161833216,-150.0,0.00013869,2]
[390804348,1760161833229,-500.0,0.00013869,2]
[390804349,1760161833239,-150.0,0.00013869,2]
[390804350,1760161833248,-1140.0,0.00013869,2]
[390804351,1760161833258,-509.92858376,0.0001387,2]
[390804352,1760161833267,-1000.0,0.0001387,2]
[390804353,1760161833277,-2000.0,0.0001387,2]
[390804354,1760161833286,-2000.0,0.0001387,2]
[390804355,1760161833295,-2000.0,0.0001387,2]
[390804356,1760161833305,-2000.0,0.0001387,2]
[390804357,1760161833314,-1636.535,0.0001387,2]
[390804358,1760161833323,-503.0,0.0001389,2]
[390804359,1760161833332,-500.0,0.00013924,2]
[390804360,1760161833342,-874.0,0.00013924,2]
[390804361,1760161833351,-568.55787242,0.00013924,2]
[390804362,1760161833360,-243.58972745,0.00013924,2]
[390804363,1760161833370,-500.0,0.00013924,2]
[390804364,1760161833379,-150.57262808,0.00013924,2]
[390804365,1760161833388,-150.0,0.00013924,2]
[390804366,1760161833397,-150.0,0.00013924,2]
[390804367,1760161833407,-500.0,0.00013924,2]
[390804368,1760161833416,-150.0,0.00013924,2]
[390804369,1760161833426,-500.0,0.00013924,2]
[390804370,1760161833435,-150.0,0.00013924,2]
[390804371,1760161833445,-500.0,0.00013924,2]
[390804372,1760161833455,-603.63356748,0.00013924,2]
[390804373,1760161833465,-150.0,0.00013924,2]
[390804374,1760161833475,-150.0,0.00013924,2]
[390804375,1760161833484,-690.0,0.00013924,2]
[390804376,1760161833495,-484.0,0.00013924,2]
[390804377,1760161833504,-150.0,0.00013924,2]
[390804378,1760161833513,-500.0,0.00013924,2]
[390804379,1760161833522,-150.0,0.00013924,2]
[390804380,1760161833531,-150.0,0.00013924,2]
[390804381,1760161833543,-150.0,0.00013924,2]
[390804382,1760161833553,-150.0,0.00013924,2]
[390804383,1760161833564,-473.0,0.00013924,2]
[390804384,1760161833573,-150.0,0.00013924,2]
[390804385,1760161833583,-500.0,0.00013924,2]
[390804386,1760161833592,-659.0,0.00013924,2]
[390804387,1760161833601,-557.0,0.00013924,2]
[390804388,1760161833611,-500.0,0.00013924,2]
[390804389,1760161833619,-1140.0,0.00013924,2]
[390804390,1760161833630,-154.16,0.00013939,2]
[390804391,1760161833640,-520.97593666,0.00013979,2]
[390804392,1760161833649,-874.0,0.00013979,2]
[390804393,1760161833658,-500.0,0.00013979,2]
[390804394,1760161833667,-150.0,0.00013979,2]
[390804395,1760161833677,-150.0,0.00013979,2]
[390804396,1760161833686,-483.07165069,0.00013979,2]
[390804397,1760161833695,-150.0,0.00013979,2]
[390804398,1760161833706,-305.63677012,0.00013979,2]
[390804399,1760161833723,-150.0,0.00013979,2]
[390804400,1760161833735,-500.0,0.00013979,2]
[390804401,1760161833744,-150.0,0.00013979,2]
[390804402,1760161833758,-251.27025444,0.00013979,2]
[390804403,1760161833768,-690.0,0.00013979,2]
[390804404,1760161833777,-484.0,0.00013979,2]
[390804405,1760161833787,-500.0,0.00013979,2]
[390804406,1760161833797,-150.0,0.00013979,2]
[390804407,1760161833807,-150.47303201,0.00013979,2]
[390804408,1760161833817,-217.52038592,0.00013979,2]
[390804409,1760161833826,-150.0,0.00013979,2]
[390804410,1760161833836,-473.0,0.00013979,2]
[390804411,1760161833845,-150.0,0.00013979,2]
[390804412,1760161833855,-500.0,0.00013979,2]
[390804413,1760161833866,-659.0,0.00013979,2]
[390804414,1760161833876,-557.0,0.00013979,2]
[390804415,1760161833886,-509.30896312,0.00013979,2]
[390804416,1760161833895,-1140.0,0.00013979,2]
[390804417,1760161833905,-409.32156326,0.00013999,2]
[390804418,1760161833915,-162.16,0.00014,2]
[390804419,1760161833925,-151.0,0.00014,2]
[390804420,1760161833934,-267.32721477,0.00014,2]
[390804421,1760161833944,-1000.0,0.00014,2]
[390804422,1760161833953,-1000.0,0.00014,2]
[390804423,1760161833963,-1000.0,0.00014,2]
[390804424,1760161833972,-1000.0,0.00014,2]
[390804425,1760161833984,-1000.0,0.00014,2]
[390804426,1760161833994,-1000.0,0.00014,2]
[390804427,1760161834003,-1000.0,0.00014,2]
[390804428,1760161834012,-1000.0,0.00014,2]
[390804429,1760161834022,-1000.0,0.00014,2]
[390804430,1760161834031,-1000.0,0.00014,2]
[390804431,1760161834041,-1000.0,0.00014,2]
[390804432,1760161834050,-1000.0,0.00014,2]
[390804433,1760161834059,-1000.0,0.00014,2]
[390804434,1760161834068,-1000.0,0.00014,2]
[390804435,1760161834078,-1000.0,0.00014,2]
[390804436,1760161834088,-1000.0,0.00014,2]
[390804437,1760161834098,-1000.0,0.00014,2]
[390804438,1760161834110,-569.44014709,0.00014,2]
[390804439,1760161834123,-430.55985291,0.00014,2]
[390804440,1760161834134,-1000.0,0.00014,2]
[390804441,1760161834144,-742.25264252,0.00014,2]
[390804442,1760161834154,-10447.37928212,0.00014,2]
[390804443,1760161834164,-874.0,0.00014033,2]
[390804444,1760161834174,-500.0,0.00014033,2]
[390804445,1760161834183,-150.0,0.00014033,2]
[390804446,1760161834193,-207.59332486,0.00014033,2]
[390804447,1760161834204,-200.0,0.00014033,2]
[390804448,1760161834214,-150.77128023,0.00014033,2]
[390804449,1760161834225,-500.0,0.00014033,2]
[390804450,1760161834236,-208.12322192,0.00014033,2]
[390804451,1760161834248,-690.0,0.00014033,2]
[390804452,1760161834258,-484.0,0.00014033,2]
[390804453,1760161834270,-500.0,0.00014033,2]
[390804454,1760161834280,-150.0,0.00014033,2]
[390804455,1760161834290,-150.0,0.00014033,2]
[390804456,1760161834300,-473.0,0.00014033,2]
[390804457,1760161834314,-250.89604723,0.00014033,2]
[390804458,1760161834325,-500.0,0.00014033,2]
[390804459,1760161834335,-659.0,0.00014033,2]
[390804460,1760161834345,-557.0,0.00014033,2]
[390804461,1760161834355,-367.62153996,0.00014038,2]
[390804462,1760161834365,-874.0,0.00014088,2]
[390804463,1760161834376,-500.0,0.00014088,2]
[390804464,1760161834387,-150.0,0.00014088,2]
[390804465,1760161834397,-500.0,0.00014088,2]
[390804466,1760161834408,-690.0,0.00014088,2]
[390804467,1760161834417,-484.0,0.00014088,2]
[390804468,1760161834427,-500.0,0.00014088,2]
[390804469,1760161834438,-222.44366216,0.00014088,2]
[390804470,1760161834448,-150.0,0.00014088,2]
[390804471,1760161834459,-473.0,0.00014088,2]
[390804472,1760161834468,-500.0,0.00014088,2]
[390804473,1760161834481,-659.0,0.00014088,2]
[390804474,1760161834491,-557.0,0.00014088,2]
[390804475,1760161834500,-175.87,0.000141,2]
[390804476,1760161834509,-5568.0,0.00014106,2]
[390804477,1760161834519,-733.0,0.00014121,2]
[390804478,1760161834528,-324.0,0.00014121,2]
[390804479,1760161834540,-427.0,0.00014125,2]
[390804480,1760161834551,-345.66528211,0.00014125,2]
[390804481,1760161834560,-1045.25390747,0.00014126,2]
[390804482,1760161834570,-158.0,0.00014126,2]
[390804483,1760161834580,-823.94100804,0.00014128,2]
[390804484,1760161834590,-608.0,0.00014129,2]
[390804485,1760161834599,-1474.0,0.00014129,2]
[390804486,1760161834609,-407.0,0.00014129,2]
[390804487,1760161834621,-743.0,0.00014129,2]
[390804488,1760161834631,-244.0,0.00014132,2]
[390804489,1760161834640,-1119.90103371,0.00014136,2]
[390804493,1760161839228,-439.0,0.00014033,2]
[390804494,1760161839240,-1140.0,0.00014033,2]
[390804495,1760161839250,-1140.0,0.00014088,2]
[390804496,1760161839260,-189.24804189,0.00014129,2]
[390804497,1760161839270,-73.09896629,0.00014136,2]
[390804498,1760161839281,-178.21814318,0.00014136,2]
[390804499,1760161839291,-319.0,0.00014138,2]
[390804500,1760161839301,-297.33193718,0.00014142,2]
[390804501,1760161839310,-444.0,0.00014142,2]
[390804502,1760161839321,-323.0,0.00014142,2]
[390804503,1760161839331,-500.0,0.00014143,2]
[390804504,1760161839341,-500.0,0.00014143,2]
[390804505,1760161839351,-500.0,0.00014143,2]
[390804506,1760161839360,-874.0,0.00014143,2]
[390804507,1760161839369,-500.0,0.00014143,2]
[390804508,1760161839378,-201.4963499,0.00014143,2]
[390804509,1760161839387,-500.0,0.00014143,2]
[390804510,1760161839396,-690.0,0.00014143,2]
[390804511,1760161839405,-484.0,0.00014143,2]
[390804512,1760161839414,-502.0,0.00014143,2]
[390804513,1760161839423,-203.49972983,0.00014143,2]
[390804514,1760161839432,-473.0,0.00014143,2]
[390804515,1760161839442,-500.0,0.00014143,2]
[390804516,1760161839452,-557.0,0.00014143,2]
[390804517,1760161839462,-1140.0,0.00014143,2]
[390804518,1760161839471,-570.52957268,0.00014143,2]
[390804519,1760161839482,-1843.31,0.00014143,2]
[390804520,1760161839491,-278.0,0.0001415,2]